Cogmind - Beta 13 X1 @@@ ROGUE MODE // 2023.06.21 @ 20:03:17 Player: Shadow Pussy wanter Result: Destroyed self with Grenade Launcher Performance ------------- Evolutions (0) 0 Regions Visited (3) 600 Robots Destroyed (20) 100 Value Destroyed (710) 710 Prototype IDs (10) 200 Alien Tech Used (0) 0 Bonus (0) 0 TOTAL SCORE: 1610 Bonus ------- None Cogmind --------- Core Integrity 0/250 Matter 205/300 Energy 100/100 System Corruption 2% Temperature Cool (0) Movement Rolling (110) Ox2 Location -10/Subcaves Parts ------- > --- POWER (1) -------- (None) > --- PROPULSION (2) --- Wheel > --- UTILITY (2) ------ Scrap Shield > --- WEAPON (2) ------- Subdweller Machine Gun Grenade Launcher > --- INVENTORY (5) ---- Aluminum Leg Subdweller Monowheel Makeshift System Shield Subdweller Laser Subdweller Machine Gun Peak State ------------ > --- POWER ------------ Ion Engine Light Nuclear Core > --- PROPULSION ------- Light Treads Light Treads Aluminum Leg > --- UTILITY ---------- Large Storage Unit Terrain Scanner Rainbow Chip > --- WEAPON ----------- Medium Laser Barrage Gun Light Cannon > --- INVENTORY -------- Ion Engine Aluminum Leg Wheel Wheel Small Storage Unit High-capacity Matter Pod Subdweller Laser Subdweller Laser Light Assault Rifle Subdweller Machine Gun Grenade Launcher Shrapnel Trap [Rating: 28] Favorites ----------- Power Ion Engine Engine Ion Engine Power Core Light Nuclear Core Propulsion Light Treads Treads Light Treads Leg Aluminum Leg Wheel Wheel Utility Large Storage Unit Device Terrain Scanner Storage Large Storage Unit Processor Rainbow Chip Protection Scrap Shield Weapon Medium Laser Energy Gun Medium Laser Ballistic Gun Light Assault Rifle Ballistic Cannon Light Cannon Launcher Grenade Launcher Build | -11 -10 -10 -10 ------- Run | Jun Mat Min Sub Slots Evolved . | . . . . Power . | . . . . Propulsion . | . . . . Utility . | . . . . Weapon . | . . . . Parts Attached 24 | 6 2 2 14 Power 4 | 1 1 . 2 Engine 3 | 1 . . 2 Core 1 | . 1 . . Reactor . | . . . . Propulsion 5 | 2 . . 3 Treads 2 | 2 . . . Leg 1 | . . . 1 Wheel 2 | . . . 2 Hover . | . . . . Flight . | . . . . Utility 6 | 1 1 1 3 Device 2 | . 1 . 1 Storage 2 | 1 . 1 . Processor 1 | . . . 1 Hackware . | . . . . Protection 1 | . . . 1 Artifact . | . . . . Weapon 9 | 2 . 1 6 Energy Gun 2 | . . 1 1 Energy Cannon . | . . . . Ballistic Gun 5 | 2 . . 3 Ballistic Cannon 1 | . . . 1 Launcher 1 | . . . 1 Special Weapon . | . . . . Impact Weapon . | . . . . Slashing Weapon . | . . . . Piercing Weapon . | . . . . Special Melee Weapon . | . . . . Unidentified Prototypes . | . . . . Parts Lost 10 | . . 1 9 Power 3 | . . . 3 Propulsion 3 | . . . 3 Utility 1 | . . . 1 Weapon 3 | . . 1 2 Highest Loss Streak 2 | . . 1 2 To Critical Strikes . | . . . . Average Slot Usage (%) 98 | . 98 100 98 Engine 10 | . 5 . 13 Core 6 | . 8 14 3 Treads 18 | . 28 28 14 Leg 5 | . . . 7 Wheel 5 | . . . 7 Device 6 | . 13 14 3 Storage 10 | . 14 14 9 Processor 5 | . . . 7 Protection 1 | . . . 1 Energy Gun 7 | . . 13 7 Ballistic Gun 13 | . 28 14 11 Ballistic Cannon 4 | . . . 6 Launcher 2 | . . . 3 Naked Turns . | . . . . Heaviest Build 40 | 13 14 29 40 Greatest Support 40 | 40 40 40 40 Greatest Overweight (x) 3 | 2 . . 3 Average Overweight (x) . | . . . 1 Largest Inventory Capacity 15 | 8 8 15 15 Average Capacity 13 | 7 8 14 13 Most Carried 15 | 6 8 10 15 Average Carried 10 | 3 7 9 11 Final Capacity 15 | 8 8 15 5 Final Carried 10 | 6 8 10 5 Class Distribution -------------------- 67% | Mutant 23% | Gunner 8% | Skirmisher Dominant Class ---------------- Mutant | -10/Materials Mutant | -10/Mines Mutant | -10/Subcaves Resources | -11 -10 -10 -10 ----------- Run | Jun Mat Min Sub Matter Collected 986 | 227 121 62 576 Remotely . | . . . . Salvage Created 634 | . 169 123 342 Parts 37 | . 8 7 22 Haulers Intercepted . | . . . . Recyclers Shooed . | . . . . Parts Field Recycled . | . . . . Retrieved Matter . | . . . . Parts Self-Destructed 13 | . . . 13 Prevented . | . . . . Kills | -11 -10 -10 -10 ------- Run | Jun Mat Min Sub Combat Hostiles Destroyed 19 | . 4 4 11 Guns 13 | . 4 4 5 Cannons 1 | . . . 1 AOE 5 | . . . 5 Classes Destroyed 4 | . 1 2 1 Tunneler 1 | . . 1 . Swarmer 2 | . . 2 . Grunt 6 | . 4 2 . Subdweller 11 | . . . 11 Best Kill Streak 4 | . 4 2 2 Combat Bots Only 4 | . 4 2 2 Max Kills in Single Turn 1 | . 1 1 1 Gunslinging . | . . . . Exploded 1 | . . . 1 Melee . | . . . . Uniques/NPCs Destroyed . | . . . . Combat | -11 -10 -10 -10 -------- Run | Jun Mat Min Sub Damage Taken 1468 | . 250 157 1061 Core 281 | . 39 9 233 Absorbed by Shields . | . . . . Core Remaining (%) 100 | 100 . . . Volleys Fired 98 | . 20 12 66 Largest 3 | . 2 2 3 Hottest 115 | . 40 70 115 Shots Fired 181 | . 40 23 118 Gun 129 | . 40 23 66 Cannon 28 | . . . 28 Launcher 24 | . . . 24 Special . | . . . . Kinetic 124 | . 40 16 68 Thermal 33 | . . 7 26 Explosive 24 | . . . 24 Electromagnetic . | . . . . Robot Hit Streak 14 | . 10 6 14 Robot Miss Streak 2 | . 2 2 1 Penetration Max . | . . . . Secondary Targets . | . . . . Shots Hit Robots 115 | . 33 15 67 Core Hits 43 | . 12 8 23 Critical Kills . | . . . . Critical Parts Destroyed 1 | . 1 . . Critical Strikes 1 | . 1 . . Destroy 1 | . 1 . . Melee Attacks . | . . . . Impact . | . . . . Slashing . | . . . . Piercing . | . . . . Sneak Attacks . | . . . . Combat Hostiles . | . . . . Follow-up Attacks . | . . . . Damage Inflicted 2065 | . 347 172 1546 Guns 1074 | . 347 143 584 Cannons 272 | . . . 272 Explosions 690 | . . . 690 Melee . | . . . . Ramming 29 | . . 29 . Kinetic 1058 | . 347 93 618 Thermal 288 | . . 50 238 Explosive 690 | . . . 690 Electromagnetic . | . . . . Impact . | . . . . Slashing . | . . . . Piercing . | . . . . Highest Corruption 2 | . 2 2 2 Average Corruption 2 | . 2 2 2 Corruption Purged . | . . . . Corruption Blocked . | . . . . Effects 40 | . 1 7 32 Message Errors 8 | . . 2 6 Matter Fused 13 | . . 3 10 Heat Flow Errors 5 | . 1 1 3 Energy Discharges 5 | . . . 5 Parts Rejected 1 | . . . 1 Parts Fused 2 | . . . 2 Data Loss (minor) 4 | . . . 4 Misfires 2 | . . 1 1 Overload Shots . | . . . . Overflow Damage 23 | . . . 23 Projectiles . | . . . . Explosions 23 | . . . 23 Melee . | . . . . Knockbacks 7 | . . . 7 Impact . | . . . . Kinetic 7 | . . . 7 Secondary . | . . . . Self-Inflicted Damage 229 | . . . 229 Shots 10 | . . . 10 Rammed 4 | . 1 3 . Targets Rammed 5 | . 1 4 . Kicked . | . . . . Crushed 1 | . . 1 . Highest Temperature 266 | . 137 266 87 Average Temperature 36 | . 25 64 27 Received Heat Transfer 426 | . 159 60 207 Siege Activations . | . . . . Robots Corrupted . | . . . . Combat Hostiles . | . . . . Parts Fried . | . . . . Impact Corruptions . | . . . . Robots Melted . | . . . . Combat Hostiles . | . . . . Parts Melted 2 | . . . 2 Heat Transferred 851 | . . 148 703 Parts Sabotaged . | . . . . Parts Stolen . | . . . . Parts Stripped . | . . . . Power Chain Reactions . | . . . . Missiles Intercepted . | . . . . Alert | -11 -10 -10 -10 ------- Run | Jun Mat Min Sub Peak Influence 172 | . 123 172 . Initial 47 | . . 47 . Average 87 | . 72 107 . Maximum Alert Level . | . . . . Low Security (%) 100 | 100 100 100 . Level 1 . | . . . . Level 2 . | . . . . Level 3 . | . . . . Level 4 . | . . . . Level 5 . | . . . . High Security . | . . . . Max Security . | . . . . Squads Dispatched 1 | . 1 . . Investigation . | . . . . Extermination . | . . . . Reinforcement 1 | . 1 . . Assault . | . . . . Garrison . | . . . . Intercept . | . . . . Searches Triggered . | . . . . Construction Impeded . | . . . . Haulers Reinforced . | . . . . Active Scanning Responses . | . . . . Cargo Convoy Interrupts . | . . . . Stealth | -11 -10 -10 -10 --------- Run | Jun Mat Min Sub Distress Signals . | . . . . Communications Jammed . | . . . . Distress Signals . | . . . . Times Spotted 22 | . 5 5 12 Peak Tracking Total 4 | . 4 3 2 Tactical Retreats 1 | . . 1 . Traps | -11 -10 -10 -10 ------- Run | Jun Mat Min Sub Traps Triggered 1 | . 1 . . Indirectly . | . . . . Trap Hack Attempts . | . . . . Triggered . | . . . . Disarmed . | . . . . Reprogrammed . | . . . . Reused . | . . . . Traps Extracted . | . . . . Installed . | . . . . Triggered . | . . . . Most Traps Carried 1 | . . . 1 Machines | -11 -10 -10 -10 ---------- Run | Jun Mat Min Sub Machines Disabled 1 | . . . 1 Max in Single Turn 1 | . . . 1 Machines Repaired . | . . . . Machines Sabotaged . | . . . . Overloaded Fab Kills . | . . . . Hacking | -11 -10 -10 -10 --------- Run | Jun Mat Min Sub Machines Accessed 3 | . 2 . 1 Terminals 2 | . 2 . . Fabricators . | . . . . Repair Stations . | . . . . Recycling Units . | . . . . Scanalyzers . | . . . . Garrison Access . | . . . . Total Hacks 15 | . 6 . 9 Successful 10 | . 1 . 9 Failed 5 | . 5 . . Catastrophic 2 | . 2 . . Database Lockouts . | . . . . Manual 6 | . 6 . . Terminals 6 | . 6 . . Fabricators . | . . . . Repair Stations . | . . . . Recycling Units . | . . . . Scanalyzers . | . . . . Garrison Access . | . . . . Terminal Hacks 10 | . 1 . 9 Record 8 | . . . 8 Branch Access Points 1 | . 1 . . Derelict Proto ID Bank 1 | . . . 1 Fabricator Hacks . | . . . . Repair Station Hacks . | . . . . Recycling Unit Hacks . | . . . . Scanalyzer . | . . . . Garrison Access Hacks . | . . . . Unauthorized Hacks . | . . . . Terminals . | . . . . Fabricators . | . . . . Repair Stations . | . . . . Recycling Units . | . . . . Scanalyzers . | . . . . Garrison Access . | . . . . Data Cores Recovered . | . . . . Used . | . . . . Hacking Detections 2 | . 2 . . Full Trace Events . | . . . . Feedback Events . | . . . . Feedback Blocked . | . . . . Robot Schematics Acquired . | . . . . Robots Built . | . . . . Authchips . | . . . . Time . | . . . . Total Robot Build Rating . | . . . . Part Schematics Acquired . | . . . . Parts Built . | . . . . Authchips . | . . . . Time . | . . . . Total Part Build Rating . | . . . . Parts Repaired . | . . . . Time . | . . . . Parts Recycled . | . . . . Recycled Matter . | . . . . Retrieved Matter . | . . . . Retrieved Components . | . . . . Parts Scanalyzed . | . . . . Part Schematics Acquired . | . . . . Parts Damaged . | . . . . Bothacking | -11 -10 -10 -10 ------------ Run | Jun Mat Min Sub Used RIF Installer . | . . . . Robots Hacked . | . . . . Non-combat . | . . . . Combat . | . . . . Robot Hacks Applied . | . . . . Relay Couplers Released . | . . . . Fabnet Peak Effective % . | . . . . Robots Rewired . | . . . . Allies Hacked . | . . . . Hacks Repelled . | . . . . Allies | -11 -10 -10 -10 -------- Run | Jun Mat Min Sub Total Allies . | . . . . Largest Group . | . . . . Highest-Rated Group . | . . . . Highest-Rated Ally . | . . . . Total Orders . | . . . . Ally Attacks . | . . . . Total Damage . | . . . . Kills . | . . . . Allies Corrupted . | . . . . Allies Melted . | . . . . Intel | -11 -10 -10 -10 ------- Run | Jun Mat Min Sub Robot Analysis Total . | . . . . Derelict Logs Recovered 2 | . . . 2 Drone Launches . | . . . . Drone Recoveries . | . . . . Exploration | -11 -10 -10 -10 ------------- Run | Jun Mat Min Sub Turns Passed 3137 | 72 289 532 2244 Spaces Moved 1878 | 45 137 218 1478 Core 14 | 14 . . . Treads 1023 | 31 137 218 637 Legs . | . . . . Wheels 841 | . . . 841 Hover . | . . . . Flight . | . . . . Fastest Speed 50 | 50 160 160 80 Average Speed 137 | 130 160 160 132 Slowest Speed 160 | 160 160 160 160 Overloaded Moves . | . . . . Propulsion Burnouts . | . . . . Robots Hopped . | . . . . Cave-ins Triggered . | . . . . Exploration Rate (%) 40 | 4 38 36 83 Regions Visited 3 Branch Regions 2 Pre-discovered Areas 1 | . . . 1 Known Exits Taken 1 | . 1 . . Unknown Exits Taken 2 | 1 . 1 . Scrap Searched 9 | . . 1 8 Spaces Dug 17 | . . . 17 Terrain Destroyed 121 | . . . 121 Melee . | . . . . Projectile . | . . . . AOE 121 | . . . 121 Terrain Rammed . | . . . . Walls Destroyed . | . . . . Machines Disabled . | . . . . Actions | -11 -10 -10 -10 --------- Run | Jun Mat Min Sub Total 2268 | 56 169 379 1664 Wait 239 | . 9 142 88 Move 1875 | 44 136 217 1478 Hop . | . . . . Pick Up 19 | 6 1 2 10 Fast Attach 11 | 6 1 . 4 Attach 8 | . . 1 7 Detach . | . . . . Swap 5 | . 1 1 3 Drop 5 | . . . 5 Fire 98 | . 20 12 66 Melee . | . . . . Ram . | . . . . Kick . | . . . . Crush 5 | . 1 4 . Escape Stasis . | . . . . Rewire . | . . . . Trap . | . . . . Miscellaneous 3 | . . . 3 Route ------- -11/Junkyard -10/Materials -10/Mines (discovered 4 exits: [*Mat x2] / [Exi] / *Sub) -10/Subcaves (discovered 3 exits: [*Mat] / [*Mat] / Rec) History --------- Turn | Location | Event 8 | -11/Junkyard | Discovered new exit (range 16) 73 | -11/Junkyard | Entered Materials 305 | -10/Materials | Build established: Mutant 325 | -10/Materials | Identified exit to Mines 362 | -10/Materials | Entered Mines 584 | -10/Mines | Discovered new exit (range 11) 614 | -10/Mines | Deemed a non-threat by the Exiles lab entrance 616 | -10/Mines | Discovered new exit (range 6) 809 | -10/Mines | Discovered new exit (range 13) 888 | -10/Mines | Discovered new exit (range 4) 894 | -10/Mines | Entered Subcaves 1283 | -10/Subcaves | Visited 4L-MR0's lab 1304 | -10/Subcaves | Found Rainbow Chip 1306 | -10/Subcaves | Attached Rainbow Chip, gained temporary slots: Power, Propulsion, Utility, Weapon 1378 | -10/Subcaves | Shifting Twisted Machinery released Sub. Machine Gun 1502 | -10/Subcaves | Shifting Twisted Machinery released Piercing Trap 1575 | -10/Subcaves | Shifting Twisted Machinery released Battle Rifle 1595 | -10/Subcaves | Shifting Twisted Machinery released Mak. Armor Plating 1681 | -10/Subcaves | Discovered new exit (range 13) 1931 | -10/Subcaves | Build established: Gunner 1964 | -10/Subcaves | Identified exit to Recycling 2001 | -10/Subcaves | Ambushed by Subdwellers from Twisted Machinery 2002 | -10/Subcaves | Shifting Twisted Machinery released Mak. System Shield 2020 | -10/Subcaves | Core integrity fell below 50% 2177 | -10/Subcaves | Learned location of Recycling (-8) 2676 | -10/Subcaves | Build established: Mutant 2694 | -10/Subcaves | Discovered new exit (range 12) 2719 | -10/Subcaves | Core integrity fell below 20% 2722 | -10/Subcaves | Ambushed by Subdweller buried in earth 3128 | -10/Subcaves | Ambushed by Subdweller buried in earth 3138 | -10/Subcaves | Destroyed self with Grenade Launcher Last Messages --------------- 02889_ Dropped Lrg. Storage Unit. 02890_ Discarded Rainbow Chip. 02890_ Temporary Propulsion slot lost. 02891_ Dropped Med. Laser. 02904_ Acquired Scrap Shield. 02907_ Acquired Scrap Shield Fragment. 02908_ Dropped Scrap Shield Fragment. 02910_ Scrap Shield Fragment affixed to Scrap Shield (+43). 02912_ Scrap Shield Fragment affixed to Scrap Shield (+48). 02914_ Scrap Shield Fragment affixed to Scrap Shield (+2). 02921_ Acquired Mak. System Shield. 02984_ System corrupted: Energy discharge (-82). 03056_ System corrupted: Component data lost. 03099_ 18|FCE8Z=L&85HWR=YTZCYVQRL Z:GWNR 03129_ D5-UMV(R): "ARGHSUB!" 03132_ Wheel destroyed. 03132_ Destroyed Wheel. 03133_ The unstable cave ceiling collapses. 03134_ Ion Engine destroyed. 03137_ CY-529(u) builds Twisted Machinery. Map ----- +----------------------------------------------------+ | ?????????????????????????????????????????????????? | | ?????????????????????????????????????????????????? | | ?????????????????????????????????????????????????? | | ?????????????????????????????????????????????????? | | ?????????????????????????????????????????????????? | | ?????????????????????????????????????????????????? | | ?????????????????????????????????????????????????? | | ?????????????????????????????????????????????????? | | ?????????????????????????????????????????????????? | | ?????????????????????????????????????????????????? | | ?????????????????????????????????????????????????? | | ?????????????????????????????????????????????????? | | ?????????????????????????????????????????????????? | | ?????????????????????????????????????????????????? | | ?????????????????????????????????????????????????? | | ???????????? ????????????????????????????????????? | | ?????????? ??###??????????????????????????????? | | ???? ?#### ??" #??????????????????????????????? | | ????? # ##" #??####?##?????????????????????? | | ?????? #"" #### # # ##????????????????????? | | ??????? " "" ## #????????????????????? | | ????????# """"" " # #????????????????????? | | ?????????# """ u" #????????????????????? | | ?????????# """" " R #????????????????????? | | ????????##"" """ " #????????????????????? | | ???????##"" #### @ ##????????????????????? | | ???????#"" ## #?## #????????????????????? | | ???????#"" ### #??#### #########???????????????? | | ???????#" ##?# ##?### ### #???????????????? | | ???????##"#### ### ## #######?????????? | | ???????# "#" # # #### # ""###?####??? | | ???????# "" # ### """"" ##" # "" | | ??###??# # ]"# ## & " " """? | | #?# #### ##### #### ## [& """ """"" | | #?# ## #??## #?## # *""" # # "#?"? | | ### ## ###### #??##! ## # ###??? ## | | # # ##??## [=#### #####""# | | ##### =!!#??# ### # # ""# | | ## [!&##?# #####?## "" | | [& ### ##?????# #### | | ### ### !& ####??# #????? | | ##?####?# [& ! #??# # #????? | | ##???????# & ##?# ###????? | | #????????## # ###??####??????? | | #????????# ### ## #??????????????? | | #???????## ####### ##??????????????? | | ???????# #?????####???????????????? | | # ##??????# ###????????????????????????? | | ## ##???????## ##??????????????????????????? | | ?#####?????????## ####???????????????????????????? | +----------------------------------------------------+ Best States ------------- Heat Dissipation 25 Energy Generation 19 Energy Capacity 400 Matter Stores 300 Matter Capacity 300 Sight Range 16 Terrain Scan Range 14 Terrain Scan Density 10 Armor Coverage 800 Evasion (%) 50 Recoil Reduction 2 Item Schematics ----------------- None Robot Schematics ------------------ None Fabricated ------------ Nothing Alien Tech Used ----------------- None Achievements -------------- None Challenges ------------ None Game ------ Seed NavigationFluxFlamer Manual? 0 Play Time 00:18:23 Cumulative 137.7 hours Start 2023.06.21 @ 19:48:48 End 2023.06.21 @ 20:03:17 Sessions 1 Manual Loads 0 Difficulty Rogue Special Mode None Game No. 192 Rogue 192 Adventurer 0 Explorer 0 Win Type - Total 2 Types 2/0/0/0/0/0/0/0/0 Lore% 60 Gallery% 66 Achievement% 53 Wizard Run 0 Options --------- ASCII 0 Keyboard 0 Movement Numpad Keybinds 0 Fullscreen 1 Font 18/SmallcapsGlow Map View 76x50 Tactical HUD 1 Map Filters NONE Filters NONE Steam 1 RUN: 57c201c0-7e06-4690-897f-9da152385088